bitfinex/quotes_BTCUSD_20251029
["timestamp","ask_amount","ask_price","bid_price","bid_amount"]
[1761771389105,0.72201395,111700.0,111690.0,0.1050402]
[1761771389345,0.72201395,111700.0,111690.0,0.0568302]
[1761771389462,0.63219494,111700.0,111690.0,0.0568302]
[1761771389868,0.21861933,111700.0,111690.0,0.0568302]
[1761771390071,0.63219494,111700.0,111690.0,0.0568302]
[1761771390478,0.21861933,111700.0,111690.0,0.0316202]
[1761771390678,1.09078055,111700.0,111690.0,0.0014802]
[1761771390884,1.18059956,111700.0,111690.0,0.0014802]
[1761771394504,1.09078055,111700.0,111690.0,0.0014802]
[1761771399330,1.04577055,111700.0,111690.0,0.0336702]
[1761771399676,1.09464055,111700.0,111690.0,0.0014802]
[1761771402710,1.09464055,111700.0,111690.0,0.0015202]
[1761771416670,0.68106494,111700.0,111690.0,0.0015202]
[1761771416890,1.09464055,111700.0,111690.0,0.0015202]
[1761771417234,0.68106494,111700.0,111690.0,0.0015202]
[1761771418328,1.09464055,111700.0,111690.0,0.0015202]
[1761771419405,1.04577055,111700.0,111690.0,0.0337102]
[1761771419616,1.09464055,111700.0,111690.0,0.0015202]
[1761771420847,0.26748933,111700.0,111690.0,0.0015202]
[1761771421054,1.09464055,111700.0,111690.0,0.0015202]
[1761771421874,0.60160494,111700.0,111690.0,0.0599202]
[1761771422083,0.18802933,111700.0,111690.0,0.1092502]
[1761771422288,0.60160494,111700.0,111690.0,0.1092502]
[1761771422498,0.21966933,111700.0,111690.0,0.1092502]
[1761771422701,0.18802933,111700.0,111690.0,0.1092502]
[1761771422906,0.60160494,111700.0,111690.0,0.1092502]
[1761771423496,0.60135562,111700.0,111690.0,0.1092502]
[1761771424371,0.63299562,111700.0,111690.0,0.0599202]
[1761771424750,0.68186562,111700.0,111690.0,0.0277302]
[1761771424956,0.63299562,111700.0,111690.0,0.0599202]
[1761771425826,0.21966933,111700.0,111690.0,0.1092502]
[1761771426241,0.18802933,111700.0,111690.0,0.1092502]
[1761771426922,0.18802933,111700.0,111690.0,0.28831726]
[1761771427557,0.21876933,111700.0,111690.0,0.1092502]
[1761771428162,0.67830562,111700.0,111690.0,0.0015202]
[1761771428383,0.63209562,111700.0,111690.0,0.0344302]
[1761771428587,0.21876933,111700.0,111690.0,0.0344302]
[1761771429211,0.26497933,111700.0,111690.0,0.0015202]
[1761771429445,0.67830562,111700.0,111690.0,0.0015202]
[1761771429880,0.76812463,111700.0,111690.0,0.0015202]
[1761771438399,0.67830562,111700.0,111690.0,0.0015202]
[1761771443127,0.21876933,111700.0,111690.0,0.0344102]
[1761771443350,0.18802933,111700.0,111690.0,0.1065902]
[1761771443980,0.21912933,111700.0,111690.0,0.1065902]
[1761771444991,0.21912933,111700.0,111690.0,0.0586502]
[1761771446646,0.21912933,111700.0,111690.0,0.0015202]
[1761771446647,0.76747463,111700.0,111690.0,0.0015202]
[1761771448489,0.35414834,111700.0,111690.0,0.0015202]
[1761771448705,0.76747463,111700.0,111690.0,0.0015202]
[1761771449782,0.67765562,111700.0,111690.0,0.0015202]
[1761771452486,0.63245562,111700.0,111690.0,0.0344102]
[1761771453459,0.67765562,111700.0,111690.0,0.0015202]
[1761771457132,0.63245562,111700.0,111690.0,0.0344102]
[1761771457660,0.63245562,111700.0,111690.0,0.0336302]
[1761771460378,0.63245562,111700.0,111690.0,0.0015202]
[1761771460640,0.68175562,111700.0,111690.0,0.0015202]
[1761771460895,0.77157463,111700.0,111690.0,0.0015202]
[1761771462457,4.61471993,111700.0,111690.0,0.0015202]
[1761771462688,4.6609022,111700.0,111690.0,0.0015202]
[1761771462912,4.72044144,111700.0,111690.0,0.0015202]
[1761771463139,0.51908309,111680.0,111670.0,0.00064908]
[1761771463363,1.19279486,111680.0,111670.0,0.00112961]
[1761771463843,1.00389116,111680.0,111670.0,0.00112961]
[1761771464058,1.18297425,111680.0,111670.0,0.00112961]
[1761771464684,1.18297425,111680.0,111670.0,0.00212961]
[1761771465406,0.79657635,111680.0,111670.0,0.00612961]
[1761771465620,4.21990263,111680.0,111670.0,0.00612961]
[1761771465837,4.25608491,111680.0,111670.0,0.00612961]
[1761771466085,4.25608491,111680.0,111670.0,0.00212961]
[1761771466494,4.25608491,111680.0,111670.0,0.00512961]
[1761771466704,4.25608491,111680.0,111670.0,0.00212961]
[1761771466914,4.25608491,111680.0,111670.0,1e-08]
[1761771467131,0.17914725,111640.0,111630.0,0.0945165]
[1761771467347,0.17914725,111640.0,111630.0,0.0949975]
[1761771467558,0.17914725,111640.0,111630.0,0.1271075]
[1761771467773,0.17914725,111640.0,111630.0,0.1283502]
[1761771467978,0.23059725,111640.0,111630.0,0.1045737]
[1761771468188,0.19768725,111640.0,111630.0,0.1045737]
[1761771468606,0.17914725,111640.0,111630.0,0.1105737]
[1761771469254,0.17914725,111640.0,111630.0,0.1125737]
[1761771470557,0.17914725,111640.0,111630.0,0.291737]
[1761771471086,0.17914725,111640.0,111630.0,0.1125737]
[1761771471514,0.17914725,111640.0,111630.0,0.291737]
[1761771471718,0.17914725,111640.0,111630.0,0.1125737]
[1761771472279,0.17914725,111640.0,111630.0,0.291737]
[1761771473499,0.17913121,111650.0,111630.0,0.291737]
[1761771473707,0.17913121,111650.0,111640.0,0.10285]
[1761771474125,0.71020713,111650.0,111640.0,0.05632]
[1761771474345,0.77804713,111650.0,111640.0,0.05632]
[1761771474526,0.77804713,111650.0,111630.0,0.25238332]
[1761771474527,0.17914725,111640.0,111630.0,0.071221]
[1761771474767,0.17914725,111640.0,111630.0,0.076221]
[1761771474972,0.17914725,111640.0,111630.0,0.2834943]
[1761771475424,0.17914725,111640.0,111630.0,0.2824943]
[1761771475649,0.17914725,111640.0,111630.0,0.103331]
[1761771475857,0.17914725,111640.0,111630.0,0.109331]
[1761771476305,0.17914725,111640.0,111630.0,0.2884943]
[1761771477150,0.18215746,111650.0,111640.0,0.03211]
[1761771477359,0.59548375,111650.0,111640.0,0.03211]
[1761771477594,0.62839375,111650.0,111640.0,0.03211]
[1761771477808,0.17914725,111640.0,111630.0,0.079221]
[1761771478214,0.17914725,111640.0,111630.0,0.2523843]
[1761771478415,0.17914725,111640.0,111630.0,0.2824943]
[1761771478616,0.21205725,111640.0,111630.0,0.056801]
[1761771478791,0.21205725,111640.0,111630.0,0.2824943]
[1761771478792,0.17914725,111640.0,111630.0,0.2824943]
[1761771479126,0.17914725,111640.0,111630.0,0.2884943]
[1761771479530,0.17914725,111640.0,111630.0,0.1125737]
[1761771481083,0.21205725,111640.0,111630.0,0.1125737]
[1761771481478,0.17914725,111640.0,111630.0,0.1125737]
[1761771481686,0.21205725,111640.0,111630.0,0.1125737]
[1761771482301,0.17914725,111640.0,111630.0,0.1125737]
[1761771482742,0.21205725,111640.0,111630.0,0.1125737]
[1761771483371,0.6257867,111640.0,111630.0,0.1125737]
[1761771483780,0.21205725,111640.0,111630.0,0.1125737]
[1761771483988,0.5928767,111640.0,111630.0,0.1125737]
[1761771484409,0.6257867,111640.0,111630.0,0.1125737]
[1761771485067,0.6257867,111640.0,111630.0,0.0660437]
[1761771485282,1.17454057,111640.0,111630.0,0.0097237]
[1761771485912,1.26435958,111640.0,111630.0,0.0097237]
[1761771486126,4.67808903,111640.0,111630.0,0.0097237]
[1761771486333,5.01808903,111640.0,111630.0,0.0037237]
[1761771486542,5.04502753,111640.0,111630.0,0.0037237]
[1761771486755,5.04502753,111640.0,111630.0,0.0077237]
[1761771487181,5.04502753,111640.0,111630.0,0.0057237]
[1761771487825,5.04502753,111640.0,111630.0,0.0027237]
[1761771488324,5.04502753,111640.0,111630.0,0.0037237]
[1761771488534,5.04502753,111640.0,111630.0,0.0027237]
[1761771488744,5.05406545,111640.0,111630.0,0.0027237]
[1761771490230,5.05304429,111640.0,111630.0,0.0027237]
[1761771490882,5.02610579,111640.0,111630.0,0.0027237]
[1761771493252,5.03610578,111640.0,111630.0,0.0027237]
[1761771499105,5.03610578,111640.0,111630.0,0.0017237]
[1761771499762,3.5191633,111630.0,111620.0,0.03072481]
[1761771499985,4.62934022,111630.0,111620.0,0.03120637]
[1761771500439,4.62934022,111630.0,111620.0,0.03142291]
[1761771501298,4.62934022,111630.0,111620.0,0.03242291]
[1761771505409,3.71206231,111630.0,111620.0,0.03242291]
[1761771505630,4.53952121,111630.0,111620.0,0.03242291]
[1761771506838,0.51921146,111600.0,111590.0,0.0004]
[1761771507054,1.89879882,111600.0,111590.0,0.00088213]
[1761771507258,5.03689783,111600.0,111590.0,0.00088213]
[1761771507660,5.06384613,111600.0,111590.0,0.00088213]
[1761771508077,0.17925965,111570.0,111560.0,0.0475765]
[1761771508287,0.5929891,111570.0,111560.0,0.12981911]
[1761771508694,0.6230291,111570.0,111560.0,0.12981911]
[1761771508916,0.5929891,111570.0,111560.0,0.12981911]
[1761771509505,0.5929891,111570.0,111560.0,0.13581911]
[1761771510522,0.17925965,111570.0,111560.0,0.13581911]
[1761771510763,0.5929891,111570.0,111560.0,0.13581911]
[1761771510985,0.5929891,111570.0,111560.0,0.13781911]
[1761771511619,0.17925965,111570.0,111560.0,0.13781911]
[1761771511836,0.5929891,111570.0,111560.0,0.13781911]
[1761771512463,0.5929891,111570.0,111560.0,0.1802641]
[1761771512666,0.5929891,111570.0,111560.0,0.16950756]
[1761771512868,0.5929891,111570.0,111560.0,0.17080757]
[1761771514384,0.17925965,111570.0,111560.0,0.11534262]
[1761771514593,0.5929891,111570.0,111560.0,0.11534262]
[1761771515227,0.17925965,111570.0,111560.0,0.11534262]
[1761771515428,0.5929891,111570.0,111560.0,0.11534262]
[1761771515877,0.17925965,111570.0,111560.0,0.11534262]
[1761771516093,0.5929891,111570.0,111560.0,0.11534262]
[1761771518288,0.17924359,111580.0,111560.0,0.7981668]
[1761771518495,0.17924359,111580.0,111570.0,0.10196]
[1761771518705,0.20985341,111590.0,111570.0,0.79552368]
[1761771518707,0.18820341,111590.0,111570.0,0.79552368]
[1761771518910,0.20981969,111610.0,111580.0,1.1984815]
[1761771519083,0.17921226,111600.0,111590.0,0.61516697]
[1761771519295,0.60189914,111610.0,111600.0,0.05317]
[1761771519516,0.60189914,111610.0,111600.0,0.10196]
[1761771519917,0.18816969,111610.0,111600.0,0.28117146]
[1761771520637,1.1854076,111610.0,111600.0,0.00048261]
[1761771520793,1.27522661,111610.0,111600.0,0.00048261]
[1761771521234,0.86149716,111610.0,111600.0,0.00048261]
[1761771521393,1.27522661,111610.0,111600.0,0.00048261]
[1761771522045,0.86149716,111610.0,111600.0,0.00148261]
[1761771523006,0.44776771,111610.0,111600.0,0.00148261]
[1761771523248,0.86149716,111610.0,111600.0,0.00148261]
[1761771523585,0.86149716,111610.0,111600.0,0.03174261]
[1761771523586,0.63407914,111610.0,111600.0,0.03174261]
[1761771524167,0.63407914,111610.0,111600.0,0.05465261]
[1761771525493,0.22034969,111610.0,111600.0,0.05465261]
[1761771525802,0.63407914,111610.0,111600.0,0.05465261]
[1761771526201,0.77167815,111610.0,111600.0,0.00148261]
[1761771529752,0.77167815,111610.0,111600.0,0.00191579]
[1761771530907,0.3579487,111610.0,111600.0,0.00191579]
[1761771531110,0.77167815,111610.0,111600.0,0.00191579]
[1761771533945,1.27522661,111610.0,111600.0,0.00191579]
[1761771536677,1.0729958,111610.0,111600.0,0.00191579]
[1761771536889,1.25221773,111610.0,111600.0,0.00191579]
[1761771537721,1.25221773,111610.0,111600.0,0.00091579]
[1761771537940,1.2611775,111610.0,111600.0,0.00091579]
[1761771538406,1.6011775,111610.0,111600.0,0.00091579]
[1761771538622,4.6011775,111610.0,111600.0,0.00091579]
[1761771540987,4.51135849,111610.0,111600.0,0.00091579]
[1761771544763,4.09762904,111610.0,111600.0,0.00091579]
[1761771545000,1.51135849,111610.0,111600.0,0.00091579]
[1761771545208,1.09762904,111610.0,111600.0,0.00091579]
[1761771545433,1.09798542,111610.0,111600.0,0.00091579]
[1761771546048,1.18780443,111610.0,111600.0,0.00091579]
[1761771548925,1.09798542,111610.0,111600.0,0.00091579]
[1761771557727,4.09798542,111610.0,111600.0,0.00091579]
[1761771561775,1.09798542,111610.0,111600.0,0.00091579]
[1761771564794,0.98090605,111610.0,111600.0,0.00091579]
[1761771570284,0.98090605,111610.0,111600.0,0.03192579]
[1761771570515,0.89108704,111610.0,111600.0,0.03192579]
[1761771570643,0.89108704,111610.0,111600.0,0.05570579]
[1761771571340,0.47700121,111610.0,111600.0,0.10020579]
[1761771571547,0.13700121,111610.0,111600.0,0.10020579]
[1761771579171,0.13700121,111610.0,111600.0,0.27941725]
[1761771579719,0.13700121,111610.0,111600.0,0.10020579]
[1761771580553,0.13700121,111610.0,111600.0,0.05570579]
[1761771581284,0.55108704,111610.0,111600.0,0.05570579]
[1761771581812,0.13700121,111610.0,111600.0,0.10307579]
[1761771582001,0.55108704,111610.0,111600.0,0.00091579]
[1761771582214,0.55108704,111610.0,111600.0,0.05222579]
[1761771582481,0.55108704,111610.0,111600.0,0.09959579]
[1761771583221,0.55108704,111610.0,111600.0,0.05222579]
[1761771583632,0.13700121,111610.0,111600.0,0.09959579]
[1761771583804,0.55108704,111610.0,111600.0,0.09959579]
[1761771584383,0.13700121,111610.0,111600.0,0.09959579]
[1761771584580,0.55108704,111610.0,111600.0,0.09959579]
[1761771585995,0.55108704,111610.0,111600.0,0.27880725]
[1761771586540,0.55108704,111610.0,111600.0,0.09959579]
[1761771586747,0.13700121,111610.0,111600.0,0.09959579]
[1761771587156,0.13700121,111610.0,111600.0,0.27880725]
[1761771587364,0.20717642,111620.0,111600.0,0.36862626]
[1761771587582,0.18816642,111620.0,111610.0,0.27787541]
[1761771587788,0.54085912,111630.0,111610.0,0.27787541]
[1761771587789,0.95494495,111630.0,111610.0,0.27787541]
[1761771587999,0.95494495,111630.0,111620.0,0.09868]
[1761771588211,0.20085912,111630.0,111620.0,0.27785935]
[1761771588421,0.20085912,111630.0,111620.0,0.09868]
[1761771590505,0.61494495,111630.0,111620.0,0.05131]
[1761771590716,0.61494495,111630.0,111620.0,0.0224]
[1761771592506,0.17917935,111620.0,111610.0,0.06977]
[1761771592718,0.59326518,111620.0,111610.0,0.33878442]
[1761771592941,0.59326518,111620.0,111610.0,0.36769442]
[1761771593154,0.59326518,111620.0,111610.0,0.36791099]
[1761771593785,0.20085912,111630.0,111610.0,0.36791099]
[1761771593995,0.61494495,111630.0,111620.0,0.09868]
[1761771594243,0.61494495,111630.0,111620.0,0.12910625]
[1761771594461,0.17920912,111630.0,111620.0,0.08173625]
[1761771594683,0.59329495,111630.0,111620.0,0.08173625]
[1761771595114,0.17920912,111630.0,111620.0,0.08173625]
[1761771595326,0.59329495,111630.0,111620.0,0.03042625]
[1761771595772,0.59329495,111630.0,111620.0,0.05933625]
[1761771596415,0.59329495,111630.0,111620.0,0.03042625]
[1761771596416,0.17920912,111630.0,111620.0,0.03042625]
[1761771596624,0.59329495,111630.0,111620.0,0.03042625]
[1761771597213,0.67419179,111630.0,111620.0,0.03042625]
[1761771598361,0.17920912,111630.0,111620.0,0.03042625]
[1761771598570,0.59329495,111630.0,111620.0,0.03042625]
[1761771600086,0.59327503,111630.0,111620.0,0.03042625]
[1761771600509,1.00736086,111630.0,111620.0,0.03042625]
[1761771601055,0.59327503,111630.0,111620.0,0.03042625]
[1761771601458,4.00736086,111630.0,111620.0,0.03042625]
[1761771605451,4.00716774,111630.0,111620.0,0.03042625]
[1761771606516,4.85097602,111630.0,111620.0,0.03042625]
[1761771607595,4.76114716,111620.0,111610.0,0.00021657]
[1761771607800,4.85096617,111620.0,111610.0,0.00021657]
[1761771608251,4.94078518,111620.0,111610.0,0.00021657]
[1761771611533,3.69881737,111620.0,111610.0,0.00021657]
[1761771611697,4.94078518,111620.0,111610.0,0.00021657]
[1761771612327,4.95078517,111620.0,111610.0,0.00021657]
[1761771612544,4.9777303,111620.0,111610.0,0.00021657]
[1761771618976,1.46392203,111620.0,111610.0,0.00021657]
[1761771619597,1.4369769,111620.0,111610.0,0.00021657]
[1761771621081,4.4369769,111620.0,111610.0,0.00021657]
[1761771622452,1.4369769,111620.0,111610.0,0.00021657]
[1761771625278,0.60899836,111620.0,111610.0,0.00021657]
[1761771625479,1.52190717,111620.0,111610.0,0.00021657]
[1761771628439,1.93589644,111620.0,111610.0,0.00021657]
[1761771633414,1.96006867,111620.0,111610.0,0.00021657]
[1761771635423,1.98221867,111620.0,111610.0,0.00021657]
[1761771637863,4.98221867,111620.0,111610.0,0.00021657]
[1761771649783,5.02287896,111620.0,111610.0,0.00021657]
[1761771655792,3.78091115,111620.0,111610.0,0.00021657]
[1761771656014,5.02287896,111620.0,111610.0,0.00021657]
[1761771659600,4.98221867,111620.0,111610.0,0.00021657]
[1761771659827,4.5682294,111620.0,111610.0,0.00021657]
[1761771660110,4.98221867,111620.0,111610.0,0.00021657]
[1761771660348,4.5682294,111620.0,111610.0,0.00021657]
[1761771660560,4.98221867,111620.0,111610.0,0.00021657]
[1761771663625,3.74025086,111620.0,111610.0,0.00021657]
[1761771663845,4.5682294,111620.0,111610.0,0.00021657]
[1761771664783,4.98221867,111620.0,111610.0,0.00021657]
[1761771664984,4.48329913,111620.0,111610.0,0.00021657]
[1761771665441,4.48329913,111620.0,111610.0,0.02774657]
[1761771665648,4.48329913,111620.0,111610.0,0.05047657]
[1761771665852,4.4591269,111620.0,111610.0,0.00021657]
[1761771666057,4.54894591,111620.0,111610.0,0.00021657]
[1761771667447,4.1349978,111620.0,111610.0,0.00021657]
[1761771667871,4.15917003,111620.0,111610.0,0.00021657]
[1761771670800,4.55105046,111620.0,111610.0,0.00021657]
[1761771671006,4.17768033,111620.0,111610.0,0.02211657]
[1761771671682,4.59171076,111620.0,111610.0,0.02211657]
[1761771675781,4.17768033,111620.0,111610.0,0.02211657]
[1761771677823,4.08786132,111620.0,111610.0,0.02211657]
[1761771678032,4.04720102,111620.0,111610.0,0.02211657]
[1761771678560,4.04720102,111620.0,111610.0,0.05066657]
[1761771679057,3.63317059,111620.0,111610.0,0.02211657]
[1761771679256,4.04720102,111620.0,111610.0,0.02211657]
[1761771679497,4.04720102,111620.0,111610.0,0.02876657]
[1761771679671,4.04720102,111620.0,111610.0,0.00021657]
[1761771679881,4.13702003,111620.0,111610.0,0.00021657]
[1761771682239,4.09380779,111620.0,111610.0,0.00021657]
[1761771682647,3.58995835,111620.0,111610.0,0.00021657]
[1761771682858,4.00398878,111620.0,111610.0,0.00021657]
[1761771689350,4.00398878,111620.0,111610.0,0.02876657]
[1761771689583,4.00398878,111620.0,111610.0,0.02715952]
[1761771692774,3.61413058,111620.0,111610.0,0.02715952]
[1761771692928,4.11798002,111620.0,111610.0,0.02715952]
[1761771694639,4.09380779,111620.0,111610.0,0.02715952]
[1761771695467,4.09380779,111620.0,111610.0,0.00021657]
[1761771696503,3.67977736,111620.0,111610.0,0.00021657]
[1761771696715,3.70394959,111620.0,111610.0,0.00021657]
[1761771696923,4.11798002,111620.0,111610.0,0.00021657]
[1761771701735,4.02816101,111620.0,111610.0,0.00021657]
[1761771703914,4.00398878,111620.0,111610.0,0.00021657]
[1761771709900,4.00398878,111620.0,111610.0,0.02751657]
[1761771710097,4.00398878,111620.0,111610.0,0.00021657]
[1761771714345,3.68302879,111620.0,111610.0,0.00021657]
[1761771715198,3.7728478,111620.0,111610.0,0.00021657]
[1761771720727,4.1128478,111620.0,111610.0,0.00021657]
[1761771722580,4.02302879,111620.0,111610.0,0.00021657]
[1761771722776,4.43705922,111620.0,111610.0,0.00021657]
[1761771722982,4.02302879,111620.0,111610.0,0.00021657]
[1761771724442,4.04725214,111620.0,111610.0,0.00021657]
[1761771729421,4.87549318,111620.0,111610.0,0.00021657]
[1761771729641,4.96531219,111620.0,111610.0,0.00021657]
[1761771743470,4.5512217,111620.0,111610.0,0.00021657]
[1761771743681,4.96531219,111620.0,111610.0,0.00021657]
[1761771745664,3.72304072,111620.0,111610.0,0.00021657]
[1761771745882,4.5512217,111620.0,111610.0,0.00021657]
[1761771752425,4.34382616,111620.0,111610.0,0.00021657]
[1761771752628,1.43717934,111620.0,111610.0,0.00021657]
[1761771752833,4.43717934,111620.0,111610.0,0.00021657]
[1761771754483,4.34736033,111620.0,111610.0,0.00021657]
[1761771755772,4.34736033,111620.0,111610.0,0.0271595]
[1761771759118,4.43717934,111620.0,111610.0,0.0271595]
[1761771759335,4.88390685,111620.0,111610.0,0.00021657]
[1761771759594,3.17919541,111610.0,111600.0,0.02742774]
[1761771759788,4.51128589,111610.0,111600.0,0.00048261]
[1761771760004,4.0971954,111610.0,111600.0,0.00048261]
[1761771760235,4.51128589,111610.0,111600.0,0.00048261]
[1761771760464,4.53823211,111610.0,111600.0,0.00048261]
[1761771760939,4.54023211,111610.0,111600.0,0.00048261]
[1761771762705,4.56445546,111610.0,111600.0,0.00048261]
[1761771763358,4.15036497,111610.0,111600.0,0.00048261]
[1761771763802,4.56445546,111610.0,111600.0,0.00048261]
[1761771764042,0.17921146,111600.0,111590.0,0.02694622]
[1761771764254,4.42148293,111600.0,111590.0,0.00014433]
[1761771764472,4.51130194,111600.0,111590.0,0.00014433]
[1761771764915,4.53825005,111600.0,111590.0,0.00014433]
[1761771765580,4.53925005,111600.0,111590.0,0.00014433]
[1761771766020,4.53925005,111600.0,111590.0,0.00057757]
[1761771766021,4.5634734,111600.0,111590.0,0.00057757]
[1761771767104,4.53925005,111600.0,111590.0,0.00057757]
[1761771776437,4.62906906,111600.0,111590.0,0.00057757]
[1761771781850,4.96906906,111600.0,111590.0,0.00057757]
[1761771782080,5.0032924,111600.0,111590.0,0.00057757]
[1761771783783,4.99329241,111600.0,111590.0,0.00057757]
[1761771784169,4.91347339,111600.0,111590.0,0.00057757]
[1761771784375,4.9034734,111600.0,111590.0,0.00057757]
[1761771784582,4.48938291,111600.0,111590.0,0.00057757]
[1761771784723,4.9034734,111600.0,111590.0,0.00057757]
[1761771785756,4.86074117,111600.0,111590.0,0.00057757]
[1761771785953,4.91759888,111600.0,111590.0,0.00057757]
[1761771787355,4.86074117,111600.0,111590.0,0.00057757]
[1761771789477,4.44697578,111600.0,111590.0,0.00057757]
[1761771793317,4.35715677,111600.0,111590.0,0.02674757]
[1761771793692,0.18021146,111600.0,111590.0,0.08588757]
[1761771793898,0.5944645,111600.0,111590.0,0.08588757]
[1761771794121,0.5944645,111600.0,111590.0,0.11283125]
[1761771794335,0.18021146,111600.0,111590.0,0.29205877]
[1761771794511,0.18021146,111600.0,111590.0,0.38187778]
[1761771794716,0.18021146,111600.0,111590.0,0.20265026]
[1761771794923,0.18021146,111600.0,111590.0,0.38187778]
[1761771795128,0.18021146,111600.0,111590.0,0.20265026]
[1761771795361,0.18021146,111600.0,111590.0,0.38187778]
[1761771795579,0.25757745,111600.0,111590.0,0.20265026]
[1761771795814,0.5944645,111600.0,111590.0,0.11283125]
[1761771810438,0.18021146,111600.0,111590.0,0.11283125]
[1761771810648,0.5944645,111600.0,111590.0,0.11283125]
[1761771812086,1.00871754,111600.0,111590.0,0.11283125]
[1761771814148,0.5944645,111600.0,111590.0,0.11283125]
[1761771815745,0.67183049,111600.0,111590.0,0.08588757]
[1761771817442,1.08608353,111600.0,111590.0,0.08588757]
[1761771817830,0.67183049,111600.0,111590.0,0.08588757]
[1761771819052,0.18021146,111600.0,111590.0,0.08588757]
[1761771819281,0.5944645,111600.0,111590.0,0.08588757]
[1761771821627,0.001,111600.0,111590.0,0.3549341]
[1761771822066,0.001,111600.0,111590.0,0.38187463]
[1761771822896,0.001,111600.0,111590.0,0.79612767]
[1761771823344,0.62660547,111630.0,111610.0,0.17919541]
[1761771823563,0.63501305,111630.0,111620.0,0.22606935]
[1761771823781,0.55235243,111630.0,111620.0,0.26637935]
[1761771823996,0.96660547,111630.0,111620.0,0.26637935]
[1761771824440,0.9424004,111630.0,111620.0,0.26637935]
[1761771824873,0.9434004,111630.0,111620.0,0.26637935]
[1761771825269,0.9434004,111630.0,111620.0,0.0872]
[1761771825489,0.9434004,111630.0,111620.0,0.26637935]
[1761771825912,0.52914736,111630.0,111620.0,0.35619836]
[1761771826180,0.341,111630.0,111620.0,0.35619836]
[1761771826402,0.5201633,111630.0,111620.0,0.35619836]
[1761771826622,0.002,111630.0,111620.0,0.35619836]
[1761771827098,0.002,111630.0,111620.0,0.38313343]
[1761771828885,0.1811633,111630.0,111620.0,0.38313343]
[1761771829116,0.002,111630.0,111620.0,0.38313343]
[1761771830463,0.002,111630.0,111620.0,0.79738647]
[1761771830675,0.002,111630.0,111620.0,0.38313343]
[1761771832007,0.75250616,111650.0,111640.0,0.22603725]
[1761771832244,0.9316636,111650.0,111640.0,0.35616626]
[1761771833209,0.94110114,111650.0,111640.0,0.35616626]
[1761771833707,0.94510114,111650.0,111640.0,0.35616626]
[1761771833972,0.94610114,111650.0,111640.0,0.35616626]
[1761771834228,0.53182187,111650.0,111640.0,0.35616626]
[1761771834484,0.53182187,111650.0,111640.0,0.38309577]
[1761771834740,0.94607491,111650.0,111640.0,0.38309577]
[1761771835240,0.75798714,111650.0,111640.0,0.38309577]
[1761771835485,0.3437341,111650.0,111640.0,0.38309577]
[1761771835980,0.00548098,111650.0,111640.0,0.38309577]
[1761771841850,0.18461219,111650.0,111640.0,0.38309577]
[1761771842783,0.17961219,111650.0,111640.0,0.38309577]
[1761771843420,0.00048098,111650.0,111640.0,0.38309577]
[1761771844857,0.17961219,111650.0,111640.0,0.38309577]
[1761771845279,0.59386523,111650.0,111640.0,0.34278577]
[1761771845703,0.59386523,111650.0,111640.0,0.20394852]
[1761771846120,0.68368424,111650.0,111640.0,0.20394852]
[1761771846331,0.00048098,111650.0,111640.0,0.38309577]
[1761771846541,0.41473402,111650.0,111640.0,0.38309577]
[1761771846982,0.59386523,111650.0,111640.0,0.38309577]
[1761771847418,0.17961219,111650.0,111640.0,0.38309577]
[1761771847623,0.00048098,111650.0,111640.0,0.38309577]
[1761771848265,0.17961219,111650.0,111640.0,0.38309577]
[1761771849299,0.17961219,111650.0,111640.0,0.79734881]
[1761771849300,0.00048098,111650.0,111640.0,0.79734881]
[1761771850125,0.00048098,111650.0,111640.0,0.38309577]
[1761771850332,0.00048098,111650.0,111640.0,0.83353109]
[1761771850752,0.00048098,111650.0,111640.0,0.83553109]
[1761771851374,0.00048098,111650.0,111640.0,1.24922043]
[1761771852008,0.00048098,111650.0,111640.0,0.83574924]
[1761771852651,0.00048098,111650.0,111640.0,0.83374924]
[1761771853068,0.00048098,111650.0,111640.0,0.83674924]
[1761771853519,0.00048098,111650.0,111640.0,0.83874924]
[1761771857317,0.00048098,111650.0,111640.0,1.59222043]
[1761771859233,0.00048098,111650.0,111640.0,0.76527805]
[1761771859473,0.00048098,111650.0,111640.0,1.59222043]
[1761771860400,0.00048098,111650.0,111640.0,1.80846892]
[1761771862115,0.00048098,111650.0,111640.0,1.83236963]
[1761771864473,0.00048098,111650.0,111640.0,1.824497]
[1761771867569,0.00048098,111650.0,111640.0,1.85618545]
[1761771868187,0.00215528,111650.0,111640.0,1.85618545]
[1761771869393,0.00048098,111650.0,111640.0,1.83061044]
[1761771874498,0.00048098,111650.0,111640.0,1.87827724]
[1761771876254,0.41347119,111680.0,111670.0,0.22280913]
[1761771876466,0.41347119,111680.0,111670.0,0.31267608]
[1761771876669,0.41347119,111680.0,111670.0,0.35083608]
[1761771876873,0.41412036,111680.0,111670.0,0.35083608]
[1761771878376,0.00064917,111680.0,111670.0,0.35083608]
[1761771878558,0.41412036,111680.0,111670.0,0.35083608]
[1761771881003,0.00064917,111680.0,111670.0,0.35083608]
[1761771881242,0.41412036,111680.0,111670.0,0.35083608]
[1761771881682,0.00064917,111680.0,111670.0,0.35083608]
[1761771881994,0.00064917,111680.0,111670.0,0.35183608]
[1761771892380,0.41412036,111680.0,111670.0,0.35183608]
[1761771894850,0.59320345,111680.0,111670.0,0.35183608]
[1761771895033,0.59320345,111680.0,111670.0,0.13457695]
[1761771895208,0.59320345,111680.0,111670.0,0.35220608]
[1761771896234,0.59320345,111680.0,111670.0,0.35120608]
[1761771899650,0.41412036,111680.0,111670.0,0.35120608]
[1761771900662,0.59320345,111680.0,111670.0,0.35120608]
[1761771902240,0.41412036,111680.0,111670.0,0.35120608]
[1761771902458,0.41412036,111680.0,111670.0,0.31267608]
[1761771902710,1.00667464,111680.0,111670.0,0.26896608]
[1761771902925,1.09649365,111680.0,111670.0,4.794e-05]
[1761771904749,0.26955127,111680.0,111670.0,4.794e-05]
[1761771904974,0.26955127,111680.0,111670.0,0.20374707]
[1761771905193,1.09649365,111680.0,111670.0,0.17914707]
[1761771905694,1.09649365,111680.0,111670.0,4.794e-05]
[1761771908574,1.00667464,111680.0,111670.0,4.794e-05]
[1761771909195,1.00667464,111680.0,111670.0,0.17914707]
[1761771909615,1.34667464,111680.0,111670.0,4.794e-05]
[1761771911367,0.93327411,111680.0,111670.0,4.794e-05]
[1761771916514,0.51973226,111680.0,111670.0,4.794e-05]
[1761771916715,0.93327411,111680.0,111670.0,4.794e-05]
[1761771916926,1.02309312,111680.0,111670.0,4.794e-05]
[1761771921557,1.02509312,111680.0,111670.0,4.794e-05]
[1761771925084,4.02509312,111680.0,111670.0,4.794e-05]
[1761771930446,3.93527411,111680.0,111670.0,4.794e-05]
[1761771930878,3.93527411,111680.0,111670.0,0.02425794]
[1761771931108,3.93527411,111680.0,111670.0,4.794e-05]
[1761771931358,3.93527411,111680.0,111670.0,0.02425794]
[1761771931534,3.93527411,111680.0,111670.0,4.794e-05]
[1761771932268,4.02509312,111680.0,111670.0,4.794e-05]
[1761771936541,4.05201977,111680.0,111670.0,4.794e-05]
[1761771944696,4.58797178,111680.0,111670.0,4.794e-05]
[1761771944917,4.40668082,111680.0,111670.0,4.794e-05]
[1761771945130,4.82022267,111680.0,111670.0,4.794e-05]